Cogmind - Beta 16 @@@ ROGUE MODE // 2026.01.14 @ 20:47:39 Player: MrFartsburg Result: Destroyed by G-34 Mercenary with Small Laser Performance ------------- Evolutions (1) 500 Regions Visited (2) 400 Robots Destroyed (19) 95 Value Destroyed (433) 433 Prototype IDs (0) 0 Alien Tech Used (0) 0 Bonus (0) 0 TOTAL SCORE: 1428 Bonus ------- None Cogmind --------- Core Integrity 0/400 Matter 162/300 Energy 4/100 System Corruption 0% Temperature Warm (186) Movement Treading (160) Location -9/Materials Parts ------- > --- POWER (2) -------- (None) > --- PROPULSION (3) --- Light Treads > --- UTILITY (2) ------ Salvage Targeting Computer Tractor Beam > --- WEAPON (2) ------- Backup Laser I Beam Rifle > --- INVENTORY (5) ---- Heat Sink Heat Sink Peak State ------------ > --- POWER ------------ Light Ion Engine Light Ion Engine > --- PROPULSION ------- Light Treads Light Treads Wheel > --- UTILITY ---------- Salvage Targeting Computer Light Armor Plating > --- WEAPON ----------- Beam Rifle Light Assault Rifle > --- INVENTORY -------- Heat Sink Heat Sink Tractor Beam Rocket Launcher [Rating: 11] Favorites ----------- Power Ion Engine Engine Ion Engine Propulsion Wheel Treads Light Treads Wheel Wheel Flight Unit Flight Unit Utility Heat Sink Device Heat Sink Processor Salvage Targeting Computer Protection Light Armor Plating Weapon Light Assault Rifle Energy Gun EM Pulse Gun Ballistic Gun Light Assault Rifle Ballistic Cannon Improved Light Cannon Launcher Rocket Launcher Build | -11 -10 -9 ------- Run | Yrd Mat Mat Slots Evolved 2 | . . 2 Power 1 | . . 1 Propulsion 1 | . . 1 Utility . | . . . Weapon . | . . . Parts Attached 25 | 5 1 19 Power 5 | 1 . 4 Engine 5 | 1 . 4 Core . | . . . Reactor . | . . . Propulsion 8 | 2 . 6 Treads 3 | . . 3 Leg . | . . . Wheel 3 | 2 . 1 Hover . | . . . Flight 2 | . . 2 Utility 4 | . 1 3 Device 2 | . 1 1 Storage . | . . . Processor 1 | . . 1 Hackware . | . . . Protection 1 | . . 1 Artifact . | . . . Weapon 8 | 2 . 6 Energy Gun 4 | 1 . 3 Energy Cannon . | . . . Ballistic Gun 2 | 1 . 1 Ballistic Cannon 1 | . . 1 Launcher 1 | . . 1 Special Weapon . | . . . Impact Weapon . | . . . Slashing Weapon . | . . . Piercing Weapon . | . . . Special Melee Weapon . | . . . Unidentified Prototypes . | . . . Parts Lost 19 | . . 19 Power 5 | . . 5 Propulsion 7 | . . 7 Utility 1 | . . 1 Weapon 6 | . . 6 Highest Loss Streak 9 | . . 9 To Critical Strikes . | . . . Average Backups 3 | . 2 4 Power 1 | . 1 1 Propulsion 1 | . . 1 Utility 1 | . . 1 Weapon . | . . . Tool/Special . | . . . Unused Backups 3 | . . 3 Power 1 | . . 1 Propulsion . | . . . Utility 2 | . . 2 Weapon . | . . . Tool/Special . | . . . Average Slot Usage (%) 75 | . 82 72 Engine 16 | . 14 17 Treads 2 | . . 3 Wheel 17 | . 28 13 Flight 1 | . . 1 Device 10 | . 11 9 Processor 7 | . . 10 Energy Gun 7 | . 14 4 Ballistic Gun 8 | . 14 6 Ballistic Cannon 2 | . . 3 Peak Build Rating 11 | 5 6 11 Average Rating 7 | 3 5 8 On Entrance 3 | . 5 6 Avg Prop Armor Cover (%) 3 | . . 3 Naked Turns . | . . . Heaviest Build 17 | 8 9 17 Greatest Support 40 | 26 26 40 Greatest Overweight (x) 2 | . . 2 Average Overweight (x) . | . . . Largest Inventory Capacity 5 | 5 5 5 Average Capacity 5 | 5 5 5 Most Carried 5 | 2 5 5 Average Carried 3 | . 2 4 Final Capacity 5 | 5 5 5 Final Carried 5 | 1 5 2 Class Distribution -------------------- 88% | Mutant 11% | Scavenger-Mutant Dominant Class ---------------- Mutant | -10/Materials Mutant | -9/Materials Resources | -11 -10 -9 ----------- Run | Yrd Mat Mat Matter Collected 475 | 229 37 209 Remotely . | . . . Salvage Created 561 | . 119 442 Parts 50 | . 8 42 Haulers Intercepted 1 | . 1 . Recyclers Shooed 2 | . 1 1 Parts Field Recycled . | . . . Retrieved Matter . | . . . Parts Self-Destructed . | . . . Prevented . | . . . Parts Restored . | . . . Kills | -11 -10 -9 ------- Run | Yrd Mat Mat Combat Hostiles Destroyed 16 | . 3 13 Guns 9 | . 3 6 Cannons 6 | . . 6 AOE 1 | . . 1 Classes Destroyed 6 | . 3 3 Worker 1 | . . 1 Hauler 1 | . 1 . Watcher 1 | . 1 . Swarmer 9 | . 3 6 Grunt 1 | . . 1 Sentry 6 | . . 6 Best Kill Streak 4 | . 4 4 Combat Bots Only 4 | . 3 4 Max Kills in Single Turn 2 | . 2 1 Gunslinging 1 | . 1 . Exploded 1 | . . 1 Melee . | . . . Uniques/NPCs Destroyed . | . . . Combat | -11 -10 -9 -------- Run | Yrd Mat Mat Hostile Shots Fired 186 | . 13 173 Missed 46 | . 1 45 Hits 140 | . 12 128 Projectile 140 | . 12 128 Critical Strikes 6 | . . 6 Damage Taken 1848 | . 130 1718 Core 429 | . 18 411 Absorbed by Shields . | . . . Core Remaining (%) 96 | 100 92 . Volleys Fired 81 | . 6 75 Largest 2 | . 2 2 Hottest 112 | . 60 112 Shots Fired 103 | . 12 91 Gun 86 | . 12 74 Cannon 15 | . . 15 Launcher 2 | . . 2 Special . | . . . Kinetic 67 | . 6 61 Thermal 26 | . . 26 Explosive 2 | . . 2 Electromagnetic 8 | . 6 2 Robot Hit Streak 12 | . 5 12 Robot Miss Streak 4 | . 2 4 Penetration Max . | . . . Secondary Targets 1 | . 1 . Max Gunslinging Chain 1 | . 1 . Shots Hit Robots 63 | . 8 55 Core Hits 34 | . 6 28 Critical Kills . | . . . Critical Parts Destroyed . | . . . Critical Strikes 4 | . . 4 Burn 4 | . . 4 Melee Attacks . | . . . Impact . | . . . Slashing . | . . . Piercing . | . . . Sneak Attacks . | . . . Combat Hostiles . | . . . Follow-up Attacks . | . . . Damage Inflicted 969 | . 178 791 Guns 554 | . 96 458 Cannons 244 | . . 244 Explosions 166 | . 82 84 Melee . | . . . Ramming 5 | . . 5 Kinetic 509 | . 26 483 Thermal 258 | . 39 219 Explosive 84 | . . 84 Electromagnetic 113 | . 113 . Impact . | . . . Slashing . | . . . Piercing . | . . . Highest Corruption . | . . . Average Corruption . | . . . Corruption Purged . | . . . Corruption Blocked . | . . . Overload Shots . | . . . Overflow Damage 6 | . . 6 Projectiles . | . . . Explosions 6 | . . 6 Melee . | . . . Knockbacks 1 | . . 1 Impact . | . . . Kinetic 1 | . . 1 Secondary . | . . . Self-Inflicted Damage 75 | . 24 51 Shots 3 | . 1 2 Rammed 2 | . . 2 Targets Rammed 2 | . . 2 Kicked . | . . . Crushed . | . . . Highest Temperature 482 | . . 482 Average Temperature 206 | . . 206 Received Heat Transfer 600 | . . 600 Effects 6 | . . 6 Energy Bleed 1 | . . 1 Interference 2 | . . 2 Matter Decay 2 | . . 2 Damage (minor) 1 | . . 1 Siege Activations . | . . . Martial Activations . | . . . Shielding Activations . | . . . Robots Disrupted . | . . . Combat Hostiles . | . . . Robots Corrupted . | . . . Combat Hostiles . | . . . Parts Fried . | . . . Impact Corruptions . | . . . Robots Melted . | . . . Combat Hostiles . | . . . Parts Melted 1 | . 1 . Heat Transferred 901 | . 50 851 Parts Sabotaged . | . . . Parts Stolen . | . . . Parts Stripped . | . . . Power Chain Reactions 2 | . 2 . Alert | -11 -10 -9 ------- Run | Yrd Mat Mat Maximum Alert Level . | . . . Low Security (%) 100 | 100 100 100 Level 1 . | . . . Level 2 . | . . . Level 3 . | . . . Level 4 . | . . . Level 5 . | . . . High Security . | . . . Max Security . | . . . Peak Influence 109 | . 93 109 Initial 20 | . . 20 Average 39 | . 42 41 Influence Increases 525 | . 110 415 Destroy 0b10 Robot/C 320 | . 60 260 Destroy 0b10 Robot/NC 15 | . 10 5 Destroy Leader 94 | . 14 80 Successful Hack 32 | . 8 24 Disable Machine 30 | . 15 15 Destroy Structure 19 | . 3 16 Lose Combat Pursuer 15 | . . 15 Influence Decreases 484 | . 60 424 Entered New Map 30 | . . 30 Time Decay 274 | . 60 214 Lost Part 180 | . . 180 Squads Dispatched . | . . . Investigation . | . . . Extermination . | . . . Reinforcement . | . . . Assault . | . . . Garrison . | . . . Intercept . | . . . Searches Triggered . | . . . Construction Impeded . | . . . Haulers Reinforced . | . . . Active Scanning Responses . | . . . Cargo Convoy Interrupts . | . . . Stealth | -11 -10 -9 --------- Run | Yrd Mat Mat Distress Signals 3 | . 1 2 Communications Jammed . | . . . Distress Signals . | . . . Times Spotted 27 | . 4 23 Peak Tracking Total 8 | . 4 8 Tactical Retreats 1 | . . 1 Traps | -11 -10 -9 ------- Run | Yrd Mat Mat Traps Triggered . | . . . Indirectly . | . . . Trap Hack Attempts . | . . . Triggered . | . . . Disarmed . | . . . Reprogrammed . | . . . Reused . | . . . Traps Extracted . | . . . Installed . | . . . Triggered . | . . . Machines | -11 -10 -9 ---------- Run | Yrd Mat Mat Machines Disabled 2 | . 1 1 Max in Single Turn 1 | . 1 1 Machines Repaired . | . . . Machines Dismantled . | . . . Machines Sabotaged . | . . . Overloaded Fab Kills . | . . . Hacking | -11 -10 -9 --------- Run | Yrd Mat Mat Machines Accessed 3 | . 1 2 Terminals 1 | . 1 . Fabricators . | . . . Repair Stations . | . . . Recycling Units 1 | . . 1 Scanalyzers 1 | . . 1 Garrison Access . | . . . Total Hacks 6 | . 2 4 Successful 5 | . 2 3 Failed 1 | . . 1 Catastrophic . | . . . Database Lockouts . | . . . Manual . | . . . Terminals 2 | . 2 . Fabricators . | . . . Repair Stations . | . . . Recycling Units 2 | . . 2 Scanalyzers 2 | . . 2 Garrison Access . | . . . Terminal Hacks 2 | . 2 . Locate Traps 1 | . 1 . Dispatch Records 1 | . 1 . Fabricator Hacks . | . . . Repair Station Hacks . | . . . Recycling Unit Hacks 1 | . . 1 Retrieve Matter 1 | . . 1 Scanalyzer 2 | . . 2 Retrieve Study 2 | . . 2 Garrison Access Hacks . | . . . Unauthorized Hacks . | . . . Terminals . | . . . Fabricators . | . . . Repair Stations . | . . . Recycling Units . | . . . Scanalyzers . | . . . Garrison Access . | . . . Data Cores Recovered . | . . . Used . | . . . Hacking Detections 3 | . 1 2 Full Trace Events . | . . . Feedback Events . | . . . Feedback Blocked . | . . . Robot Schematics Acquired . | . . . Robots Built . | . . . Authchips . | . . . Time . | . . . Total Robot Build Rating . | . . . Part Schematics Acquired . | . . . Parts Built . | . . . Authchips . | . . . Time . | . . . Total Part Build Rating . | . . . Part Studies Acquired 2 | . . 2 Parts Repaired . | . . . Time . | . . . Parts Recycled . | . . . Recycled Matter . | . . . Retrieved Matter . | . . . Retrieved Components . | . . . Parts Scanalyzed . | . . . Part Schematics Acquired . | . . . Parts Damaged . | . . . Bothacking | -11 -10 -9 ------------ Run | Yrd Mat Mat Used RIF Installer . | . . . Robots Hacked . | . . . Non-combat . | . . . Combat . | . . . Robot Hacks Applied . | . . . Relay Couplers Released . | . . . Fabnet Peak Effective % . | . . . Robots Rewired . | . . . Allies Hacked . | . . . Hacks Repelled . | . . . Allies | -11 -10 -9 -------- Run | Yrd Mat Mat Total Allies . | . . . Largest Group . | . . . Highest-Rated Group . | . . . Highest-Rated Ally . | . . . Total Orders . | . . . Ally Attacks . | . . . Total Damage . | . . . Kills . | . . . Allies Corrupted . | . . . Allies Melted . | . . . Intel | -11 -10 -9 ------- Run | Yrd Mat Mat Active Infowar (turns) . | . . . Robot Analysis Total . | . . . Derelict Logs Recovered . | . . . Drone Launches . | . . . Drone Recoveries . | . . . Exploration | -11 -10 -9 ------------- Run | Yrd Mat Mat Turns Passed 644 | 36 167 441 Spaces Moved 434 | 29 161 244 Core 22 | 2 . 20 Treads 17 | . . 17 Legs . | . . . Wheels 379 | 27 161 191 Hover . | . . . Flight 16 | . . 16 Fastest Speed 37 | 50 90 37 Average Speed 93 | 87 90 97 Slowest Speed 160 | 90 90 160 Overloaded Moves . | . . . Propulsion Burnouts . | . . . Robots Hopped 1 | . . 1 Potential Cave-ins . | . . . Cave-ins Triggered . | . . . Exploration Rate (%) 18 | 3 31 20 Regions Visited 2 Branch Regions . Pre-discovered Areas . | . . . Known Exits Taken . | . . . Unknown Exits Taken 2 | 1 1 . Scrap Searched . | . . . Spaces Dug . | . . . Terrain Destroyed 19 | . 3 16 Melee . | . . . Projectile . | . . . AOE 19 | . 3 16 Terrain Rammed . | . . . Walls Destroyed . | . . . Machines Disabled . | . . . Actions | -11 -10 -9 --------- Run | Yrd Mat Mat Total 580 | 39 172 369 Wait . | . . . Move 430 | 28 160 242 Hop 1 | . . 1 Pick Up 28 | 6 5 17 Fast Attach . | . . . Attach 30 | 5 1 24 Detach 5 | . . 5 Swap 1 | . . 1 Drop 2 | . . 2 Fire 81 | . 6 75 Melee . | . . . Ram 2 | . . 2 Kick . | . . . Crush . | . . . Escape Stasis . | . . . Rewire . | . . . Trap . | . . . Miscellaneous . | . . . Route ------- -11/Scrapyard -10/Materials -9/Materials History --------- Turn | Location | Event 21 | -11/Scrapyard | Discovered new exit (range 15) 37 | -11/Scrapyard | Entered Materials 196 | -10/Materials | Discovered new exit (range 9) 204 | -10/Materials | Entered another Materials area 204 | -9/Materials | Evolved 2 slots: Power x1, Propulsion x1 307 | -9/Materials | Build established: Mutant 468 | -9/Materials | Core integrity fell below 50% 484 | -9/Materials | Lost 3 parts (1p2n) 522 | -9/Materials | Lost 4 parts (1p2n1w) 618 | -9/Materials | Core integrity fell below 20% 645 | -9/Materials | Destroyed by G-34 Mercenary with Small Laser Last Messages --------------- Acquired 41 matter. Acquired Lgt. Treads. U-05 Engineer builds a Wall. Acquired Backup Laser I. R-06 Scavenger inserts Lgt. Treads into recycling unit. [Achievement: Hydra] U-05 Engineer builds a Wall. Overheating: System interference. Backup Laser I temporarily disabled. R-06 Scavenger inserts Lgt. Armor Plating into recycling unit. Recycling unit begins recycling process. R-06 Scavenger collects Lgt. Armor Plating. U-05 Engineer lays Concrete. R-06 Scavenger collects Beam Rifle. U-05 Engineer lays Concrete. Y-45 Defender suffers critical hit (Burn). U-05 Engineer lays Concrete. U-05 Engineer builds a Wall. Map ----- +----------------------------------------------------+ | ?????????????????????????????????????????????????? | | ?????????????????????????????????????????????????? | | ?????????????????????????????????????????????????? | | ?????????????????????????????????????????????????? | | ?????????????????????????????????????????????????? | | ?????????????????????????????????????????????????? | | ?????????????????????????????????????????????????? | | ?????????????????????????????????????????????????? | | ?????????????????????????????????????????????????? | | ?????????????????????????????????????????????????? | | ?????????????????????????????????????????????????? | | ?????????????????????????????????????????????????? | | ?????????????????????????????????????????????????? | | ?????????????????????????????????????????????????? | | ?????????????????????????????????????????????????? | | ????????????????????????????????? ?????????????? | | ????????????????????????????????? #????????????? | | ????????????????????????????????? #????????????? | | ????????????????????????????????? #????????????? | | ????????????????????????????????? #????????????? | | ????????????????????????????????? #????????????? | | ???????????????########?????????? #????????????? | | ???????????????# #########?# #????????????? | | ????############ """ # ### #????????????? | | ????# !=%%+ "Y" # #???" ???????? | | ????# ######%# ""@ "" # #?? ???????? | | ????# ######+#######r" ! r # #? ????????? | | ????# + ! =# #"g" r # # ?????????? | | ????# ### # """ + *! u# # ??????????? | | ????# #?# # """ # Y + + ???????????? | | ????# #?# """ # """ # # #????????????? | | ????# #?# """ # # % u # #????????????? | | ????# #?# """ # ### #### ##???????????? | | ????# #?######+######+########## #???????????? | | ????# #???# % % %% #???????????? | | ????# #####% != #???????????? | | ????# %= ! % % #???????????? | | ????# ######+########+### #### #???????????? | | ????# #?# != ## % # #??#######???????????? | | ????# #?#== """ ## # #????????????????????? | | ????# #?#= """ ## # #????????????????????? | | ????# #?# """ ## # #????????????????????? | | ????# #?# ## # #????????????????????? | | ????# #?# "" "" ## # #????????????????????? | | ????# #?# ""S"" ## # #????????????????????? | | ????# #?# """" ######## #????????????????????? | | ????# #?# #??????# #????????????????????? | | ????# #?## #######??????+ #????????????????????? | | ????# #??###????????????# #????????????????????? | | ????# #?????????????????# #????????????????????? | +----------------------------------------------------+ Best States ------------- Heat Dissipation 38 Energy Generation 19 Energy Capacity 415 Matter Stores 300 Matter Capacity 300 Sight Range 16 Terrain Scan Density 10 Armor Coverage 150 Evasion (%) 42 Recoil Reduction 2 Salvage Targeting 1 Item Schematics ----------------- None Robot Schematics ------------------ None Fabricated ------------ Nothing Repaired ---------- Nothing Studied --------- Imp. Ion Engine | -9/Materials | Hacked Flight Unit | -9/Materials | Hacked Alien Tech Used ----------------- None Achievements -------------- Hydra Item+ Loot Pinata Resistances Are Futile Challenges ------------ None Game ------ Seed EncryptedWaveFemtoactuators Manual? 0 Play Time 00:24:55 Cumulative 3.5 hours Start 2026.01.14 @ 20:23:40 End 2026.01.14 @ 20:47:39 Sessions 1 Manual Loads 0 Difficulty Rogue Special Mode None Game No. 5 Rogue 5 Adventurer 0 Explorer 0 Win Type - Total 0 Types 0/0/0/0/0/0/0/0/0/0 Lore% 1 Gallery% 5 Achievement% 6 Wizard Run 0 Options --------- Layout 1 ASCII 0 Keyboard 0 Movement Numpad Keybinds 0 Fullscreen 1 Font 32/SmallcapsGlow Map View 50x35 Zoom Use 0% Tactical HUD 0 Map Filters NONE Filters NONE Steam 1 RUN: e29b054b-5fee-41ed-b38c-a427bf428ff8